Cogmind - Beta 11 @@@ ROGUE MODE // 2022.03.28 @ 20:54:35 Player: RNGesus Result: Destroyed by H-66 Slayer with Gauss Rifle Performance ------------- Evolutions (5) 2500 Regions Visited (14) 2800 Robots Destroyed (275) 1375 Value Destroyed (10731) 10731 Prototype IDs (5) 100 Alien Tech Used (0) 0 Bonus (3581) 3581 TOTAL SCORE: 21087 Bonus ------- High Alert Combat Kills 698 Follower Combat Kills 231 Entered Garrisons 800 Used RIF Installer 2000 Friendly Fire -148 Cogmind --------- Core Integrity 0/1000 Matter 124/300 Energy 38/100 System Corruption 7% Temperature Cool (0) Movement Core (50) Location -5/Factory Parts ------- > --- POWER (1) -------- (None) > --- PROPULSION (5) --- (None) > --- UTILITY (8) ------ Advanced Signal Interpreter Improved Target Analyzer Relay Coupler [NC] (30) Relay Coupler [Grunt] (18) Relay Coupler [Hunter] (1) Relay Coupler [Heavy] (11) > --- WEAPON (3) ------- (None) > --- INVENTORY (5) ---- Graphene Brace Gauss Rifle Advanced Assault Cannon Improved Datajack Great Axe Peak State ------------ > --- POWER ------------ Light Fission Core > --- PROPULSION ------- Flexi-carbon Leg Flexi-carbon Leg Armored Huge Wheel > --- UTILITY ---------- Huge Storage Unit Active Sensor Suite Relay Coupler [Grunt] Relay Coupler [Hunter] Relay Coupler [Hunter] System Guard > --- WEAPON ----------- KE Penetrator Improved KE Penetrator Improved Remote Datajack > --- INVENTORY -------- Micro Fission Core Advanced Heat Sink Advanced Cooling System Large Storage Unit Improved Matter Compressor Advanced Signal Interpreter Improved Target Analyzer Weapon Cycler Improved Light Armor Plating Graphene Brace Improved Hardlight Generator Point Defense System Advanced Hacking Suite Relay Coupler [NC] Relay Coupler [Swarmer] Relay Coupler [Heavy] Gauss Rifle Improved KE Penetrator Advanced Assault Cannon Improved Datajack Great Axe [Rating: 97] Favorites ----------- Power Reinforced Deuterium Engine Engine Reinforced Deuterium Engine Power Core Light Nuclear Core Propulsion Armored Treads Treads Armored Treads Leg Carbon-fiber Leg Wheel Armored Huge Wheel Utility Huge Storage Unit Device Seismic Detector Storage Huge Storage Unit Processor Machine Analyzer Hackware Relay Coupler [NC] Protection Hardened Light Armor Plating Weapon Autogun Energy Gun Gatling Laser Ballistic Gun Autogun Ballistic Cannon Advanced Assault Cannon Launcher Grenade Launcher Special Weapon Remote Datajack Slashing Weapon Great Axe Special Melee Weapon Improved Datajack Build | -11 -10 -10 -9 -9 -8 -8 -8 -8 -7 -7 -7 -6 -6 -5 ------- Run | Scr Mat Min Mat Min Mat Gar Mat Gar Fac Gar Fac Fac Gar Fac Slots Evolved 10 | . . . 2 . 2 . . . 2 . . 2 . 2 Power . | . . . . . . . . . . . . . . . Propulsion 3 | . . . 1 . . . . . 1 . . . . 1 Utility 6 | . . . 1 . 2 . . . 1 . . 2 . . Weapon 1 | . . . . . . . . . . . . . . 1 Parts Attached 252 | 6 9 3 11 2 27 11 12 7 46 15 10 28 33 32 Power 19 | 1 . 1 . 1 2 1 1 1 6 . 1 1 1 2 Engine 7 | 1 . 1 . . . . . . 3 . 1 . 1 . Core 12 | . . . . 1 2 1 1 1 3 . . 1 . 2 Reactor . | . . . . . . . . . . . . . . . Propulsion 61 | 2 1 2 4 . 6 1 3 3 12 4 1 6 11 5 Treads 32 | 2 1 2 3 . 6 1 2 2 10 3 . . . . Leg 20 | . . . . . . . . . . . . 5 10 5 Wheel 9 | . . . 1 . . . 1 1 2 1 1 1 1 . Hover . | . . . . . . . . . . . . . . . Flight . | . . . . . . . . . . . . . . . Utility 82 | 1 3 . 3 . 10 3 3 1 11 6 4 11 8 18 Device 31 | . 1 . 1 . 5 3 . . 4 3 1 6 2 5 Storage 4 | 1 2 . 1 . . . . . . . . . . . Processor 9 | . . . 1 . . . 1 . 1 . 2 2 . 2 Hackware 20 | . . . . . . . . . 4 . 1 1 4 10 Protection 18 | . . . . . 5 . 2 1 2 3 . 2 2 1 Artifact . | . . . . . . . . . . . . . . . Weapon 90 | 2 5 . 4 1 9 6 5 2 17 5 4 10 13 7 Energy Gun 14 | 1 . . . . 4 4 2 . 1 . . . 2 . Energy Cannon . | . . . . . . . . . . . . . . . Ballistic Gun 41 | 1 4 . 2 1 4 . 2 1 8 3 2 6 2 5 Ballistic Cannon 2 | . . . . . . . . . . . . . 2 . Launcher 16 | . 1 . 2 . 1 2 1 1 3 2 . 1 2 . Special Weapon 6 | . . . . . . . . . . . . . 4 2 Impact Weapon . | . . . . . . . . . . . . . . . Slashing Weapon 4 | . . . . . . . . . 1 . 1 1 1 . Piercing Weapon . | . . . . . . . . . . . . . . . Special Melee Weapon 7 | . . . . . . . . . 4 . 1 2 . . Unidentified Prototypes 3 | . . . . . 1 . 1 . . . . . . 1 Parts Lost 86 | . . 3 . 2 7 1 2 2 14 9 1 8 16 21 Power 13 | . . 1 . 1 2 . . 1 3 . . 1 1 3 Propulsion 29 | . . 2 . . 3 1 1 1 2 5 . 1 6 7 Utility 28 | . . . . . 2 . 1 . 6 3 1 4 5 6 Weapon 16 | . . . . 1 . . . . 3 1 . 2 4 5 Highest Loss Streak 15 | . . 3 . 1 2 1 1 1 5 5 1 4 8 15 To Critical Strikes 1 | . . . . . . . . . . . . . . 1 Average Slot Usage (%) 92 | . 85 99 98 99 95 99 99 99 94 84 75 80 94 84 Engine 4 | . 14 13 11 7 . . . . 3 7 7 4 2 3 Core 3 | . . . . 3 9 9 9 8 3 . . 1 3 1 Treads 19 | . 28 27 32 33 26 26 25 25 23 13 7 3 . . Leg 3 | . . . . . . . . . . . . 4 24 11 Wheel 2 | . . . . . . . 1 1 2 6 6 6 . 4 Device 13 | . . 14 11 11 13 25 26 18 9 15 7 11 17 9 Storage 8 | . 14 14 11 11 9 9 9 9 7 7 7 6 6 4 Processor 7 | . . . 9 11 9 1 . 9 9 9 6 13 12 4 Hackware 4 | . . . . . . . . . 10 . 6 6 12 19 Protection 4 | . . . . . 9 9 8 9 4 6 7 5 1 2 Energy Gun 2 | . . . . . 6 6 15 . . . . . 2 . Ballistic Gun 12 | . 26 28 21 22 10 7 1 16 10 14 9 6 1 10 Naked Turns . | . . . . . . . . . . . . . . . Heaviest Build 128 | 13 52 52 90 94 104 101 104 103 106 128 128 127 109 117 Greatest Support 104 | 40 40 40 60 60 60 60 60 60 104 28 28 65 70 28 Greatest Overweight (x) 41 | . 1 1 8 1 2 1 6 6 3 4 41 4 3 4 Average Overweight (x) 1 | . . 1 1 1 1 1 2 1 1 3 4 3 1 3 Largest Inventory Capacity 25 | 8 20 20 25 25 25 25 25 25 25 25 25 25 25 25 Average Capacity 23 | 6 11 20 24 25 25 25 25 25 25 25 25 25 25 24 Most Carried 25 | 2 15 13 25 25 25 25 25 25 25 25 25 25 25 25 Average Carried 21 | 1 8 12 16 24 23 24 24 24 23 23 24 24 24 22 Final Capacity 25 | 8 20 20 25 25 25 25 25 25 25 25 25 25 25 5 Final Carried 25 | 2 13 10 25 24 25 25 25 24 25 24 25 22 23 5 Class Distribution -------------------- 44% | Bothacker-Mutant 32% | Mutant 17% | Scavenger-Mutant 5% | Botlord-Mutant Dominant Class ---------------- Mutant | -10/Materials Mutant | -10/Mines Mutant | -9/Materials Mutant | -9/Mines Scavenger-Mutant | -8/Materials Scavenger-Mutant | -8/Garrison Bothacker-Mutant | -8/Materials Bothacker-Mutant | -8/Garrison Bothacker-Mutant | -7/Factory Bothacker-Mutant | -7/Garrison Bothacker-Mutant | -7/Factory Bothacker-Mutant | -6/Factory Bothacker-Mutant | -6/Garrison Botlord-Mutant | -5/Factory Resources | -11 -10 -10 -9 -9 -8 -8 -8 -8 -7 -7 -7 -6 -6 -5 ----------- Run | Scr Mat Min Mat Min Mat Gar Mat Gar Fac Gar Fac Fac Gar Fac Matter Collected 8447 | 185 531 73 708 246 879 216 164 397 1514 716 174 980 888 776 Remotely . | . . . . . . . . . . . . . . . Salvage Created 10074 | . 700 73 858 105 1389 357 665 630 1736 941 174 1114 583 749 Parts 562 | . 55 2 77 3 96 16 25 27 100 36 18 55 24 28 Haulers Intercepted 14 | . 2 . 5 . 3 . 2 . 2 . . . . . Recyclers Shooed 10 | . . . 1 . . . . . 3 . . 3 . 3 Parts Field Recycled . | . . . . . . . . . . . . . . . Retrieved Matter . | . . . . . . . . . . . . . . . Parts Self-Destructed . | . . . . . . . . . . . . . . . Prevented . | . . . . . . . . . . . . . . . Kills | -11 -10 -10 -9 -9 -8 -8 -8 -8 -7 -7 -7 -6 -6 -5 ------- Run | Scr Mat Min Mat Min Mat Gar Mat Gar Fac Gar Fac Fac Gar Fac Combat Hostiles Destroyed 214 | . 13 5 19 5 28 10 15 14 32 26 1 17 20 9 Melee 5 | . . . . . . . . . . . . 4 1 . Guns 151 | . 10 5 12 5 23 5 12 10 26 19 1 10 4 9 Cannons 4 | . . . . . . . . . . . . . 4 . AOE 51 | . 3 . 7 . 4 5 2 4 6 7 . 3 10 . Classes Destroyed 20 | . 8 1 3 1 4 1 . . 1 1 . . . . Worker 23 | . 3 . 3 . 2 . 3 . 5 . 1 3 . 3 Builder 8 | . . . 2 . 3 . . . 1 . 1 1 . . Tunneler 4 | . 1 . . . . . . . 2 . . 1 . . Hauler 14 | . 2 . 5 . 3 . 2 . 2 . . . . . Recycler 6 | . 1 . . . . . . . 2 . . 2 . 1 Mechanic 2 | . . . 1 . . . . . . . 1 . . . Operator 4 | . 1 . . . 1 . . . 2 . . . . . Watcher 3 | . 2 . . . . . . . . . 1 . . . Swarmer 43 | . 3 3 11 . 4 . 5 . 6 . . 3 7 1 Cutter 2 | . . . . . . 2 . . . . . . . . Grunt 98 | . 10 . 2 1 13 5 7 9 18 16 . 8 7 2 Brawler 6 | . . . . . 1 1 . 1 1 1 . . 1 . Duelist 3 | . . . . . . . . . . 2 . . 1 . Sentry 28 | . . . 6 . 5 2 2 4 4 4 . . 1 . Demolisher 2 | . . . . 2 . . . . . . . . . . Specialist 2 | . . . . . 2 . . . . . . . . . Hunter 11 | . . . . . 2 . 1 . . 1 . 3 2 2 Programmer 13 | . . . . . . . . . 2 2 1 3 1 4 Heavy 2 | . . . . . 1 . . . 1 . . . . . Assembled 4 | . . 1 . 3 . . . . . . . . . . Best Kill Streak 13 | . 4 3 5 2 9 3 5 5 13 9 1 5 6 3 Combat Bots Only 9 | . 3 3 4 2 5 3 4 5 7 9 1 3 6 2 Max Kills in Single Turn 5 | . 4 1 4 2 5 2 2 1 5 2 1 3 3 1 Gunslinging 1 | . . . . 1 . . . . . . . . . . Exploded 4 | . 2 . 4 . 3 2 1 1 1 2 . 2 3 . Melee 1 | . . . . . . . . . . . . 1 1 . Uniques/NPCs Destroyed 1 | . . 1 . . . . . . . . . . . . YI-UF0 (-10/Mines) Combat | -11 -10 -10 -9 -9 -8 -8 -8 -8 -7 -7 -7 -6 -6 -5 -------- Run | Scr Mat Min Mat Min Mat Gar Mat Gar Fac Gar Fac Fac Gar Fac Damage Taken 17975 | . 390 274 614 319 2273 385 541 649 2623 2199 300 2340 1776 3292 Core 2558 | . 81 50 102 63 246 47 87 58 245 216 31 105 223 1004 Absorbed by Shields 168 | . . . . . . . . . . . . . . 168 Regen/Repaired (Parts) 116 | . . . . . . . . . . . . 116 . . Core Remaining (%) 52 | 100 . 47 . 58 . . . 20 . . 29 . 61 . Volleys Fired 872 | . 54 12 69 20 115 27 50 40 138 79 12 77 93 86 Largest 2 | . 2 2 2 2 2 2 2 2 2 2 2 2 2 2 Hottest 160 | . 46 46 53 46 160 160 160 50 56 67 56 60 69 66 Shots Fired 1491 | . 103 24 136 39 211 48 82 72 235 146 18 149 98 130 Gun 1343 | . 98 24 131 39 207 42 80 64 226 132 18 147 41 94 Cannon 31 | . . . . . . . . . . . . . 31 . Launcher 68 | . 5 . 5 . 4 6 2 8 9 14 . 2 13 . Special 49 | . . . . . . . . . . . . . 13 36 Kinetic 1192 | . 98 24 131 39 144 9 24 64 226 132 18 147 42 94 Thermal 182 | . . . . . 63 33 56 . . . . . 30 . Explosive 68 | . 5 . 5 . 4 6 2 8 9 14 . 2 13 . Electromagnetic . | . . . . . . . . . . . . . . . Robot Hit Streak 21 | . 21 4 14 5 14 14 16 19 20 11 4 19 11 10 Robot Miss Streak 8 | . 4 4 4 3 8 3 4 2 7 3 2 3 5 5 Penetration Max 1 | . . . . . . . . . 1 1 . 1 1 1 Secondary Targets 11 | . 1 . . 1 . . 1 2 3 2 . . . 1 Max Gunslinging Chain 1 | . 1 . . 1 . . 1 1 1 1 . . . 1 Shots Hit Robots 1030 | . 65 11 84 17 141 24 65 52 187 93 16 120 65 90 Core Hits 536 | . 31 6 37 13 76 22 39 32 84 67 7 48 39 35 Critical Kills 5 | . . . 1 . . . . . . 3 . . . 1 Critical Parts Destroyed 8 | . . . 1 . . . 1 1 1 1 . . 1 2 Critical Strikes 20 | . . . 2 . . 1 2 1 2 4 . 1 4 3 Burn 3 | . . . . . . 1 1 . . . . . 1 . Destroy 14 | . . . 2 . . . 1 1 2 4 . . 1 3 Sever 3 | . . . . . . . . . . . . 1 2 . Melee Attacks 64 | . . . . . . . . . 21 . 5 29 9 . Impact . | . . . . . . . . . . . . . . . Slashing 32 | . . . . . . . . . 2 . 2 19 9 . Piercing . | . . . . . . . . . . . . . . . Sneak Attacks 30 | . . . . . . . . . 13 . 4 13 . . Combat Hostiles . | . . . . . . . . . . . . . . . Follow-up Attacks . | . . . . . . . . . . . . . . . Damage Inflicted 26614 | . 1477 239 1695 328 2915 717 1362 1188 4716 3832 399 3316 2403 2027 Guns 17608 | . 952 239 1300 328 2595 476 1193 827 3045 1863 222 2031 596 1941 Cannons 580 | . . . . . . . . . . . . . 580 . Explosions 7159 | . 525 . 387 . 320 241 169 361 1589 1969 . 435 1121 42 Melee 1145 | . . . . . . . . . 76 . 152 811 106 . Ramming 122 | . . . 8 . . . . . 6 . 25 39 . 44 Kinetic 15303 | . 952 239 1300 328 1463 . 313 827 3045 1863 222 2031 779 1941 Thermal 3129 | . . . . . 1132 476 880 . 244 . . . 397 . Explosive 6873 | . 525 . 387 . 320 241 169 361 1345 1969 . 435 1121 . Electromagnetic 42 | . . . . . . . . . . . . . . 42 Impact . | . . . . . . . . . . . . . . . Slashing 1145 | . . . . . . . . . 76 . 152 811 106 . Piercing . | . . . . . . . . . . . . . . . Highest Corruption 18 | . . . . 1 3 3 3 3 5 12 18 5 11 7 Average Corruption 5 | . . . . 1 3 3 3 3 5 8 13 3 11 7 Corruption Purged . | . . . . . . . . . . . . . . . Corruption Blocked 6 | . . . . . . . . . . . . . . 6 Effects 175 | . . . . 1 26 19 25 17 4 29 40 9 2 3 Message Errors 41 | . . . . . 6 4 7 3 . 8 11 1 . 1 Matter Fused 41 | . . . . . 4 3 6 5 2 8 8 4 1 . Heat Flow Errors 21 | . . . . . 5 4 3 2 . 3 3 1 . . Energy Discharges 16 | . . . . . 2 2 4 1 1 2 2 1 . 1 Parts Rejected 7 | . . . . . 1 . . 1 1 1 1 1 1 . Data Loss (minor) 14 | . . . . 1 3 1 3 1 . 1 3 1 . . Data Loss (major) 15 | . . . . . 2 1 2 1 . 3 6 . . . Misfires 7 | . . . . . 2 2 . 1 . 1 1 . . . Alerts 4 | . . . . . . . . 2 . 1 1 . . . Misdirections 3 | . . . . . . . . . . . 3 . . . Weapon Failures 6 | . . . . . 1 2 . . . 1 1 . . 1 Overload Shots . | . . . . . . . . . . . . . . . Overflow Damage 517 | . 15 . 10 . 29 . 2 . 197 16 52 170 26 . Projectiles . | . . . . . . . . . . . . . . . Explosions 241 | . 15 . 10 . 29 . 2 . 143 16 . . 26 . Melee 276 | . . . . . . . . . 54 . 52 170 . . Knockbacks 6 | . . . . . . . . . . . . . 6 . Impact . | . . . . . . . . . . . . . . . Kinetic 6 | . . . . . . . . . . . . . 6 . Secondary . | . . . . . . . . . . . . . . . Self-Inflicted Damage 219 | . . . 2 . . 61 4 . 31 . 12 19 . 90 Shots 8 | . . . 1 . . 2 2 . 1 . . . . 2 Rammed 12 | . . . 2 . . . . . 1 . 4 4 . 1 Targets Rammed 12 | . . . 2 . . . . . 1 . 4 4 . 1 Kicked . | . . . . . . . . . . . . . . . Crushed . | . . . . . . . . . . . . . . . Highest Temperature 399 | . 36 12 27 4 399 239 237 158 54 356 269 190 42 24 Average Temperature 63 | . 9 5 10 3 108 89 51 53 10 78 84 52 21 10 Received Heat Transfer 5033 | . 141 . 153 27 927 108 180 378 747 753 . 513 549 557 Effects 7 | . . . . . 5 . . . . 2 . . . . Energy Bleed 2 | . . . . . 1 . . . . 1 . . . . Interference 2 | . . . . . 2 . . . . . . . . . Matter Decay 2 | . . . . . 1 . . . . 1 . . . . Damage (minor) 1 | . . . . . 1 . . . . . . . . . Siege Activations . | . . . . . . . . . . . . . . . Robots Corrupted . | . . . . . . . . . . . . . . . Combat Hostiles . | . . . . . . . . . . . . . . . Parts Fried . | . . . . . . . . . . . . . . . Impact Corruptions 1 | . . . . . . . . . . . . . . 1 Robots Melted 3 | . . . . . 1 . 1 . . . . . 1 . Combat Hostiles 3 | . . . . . 1 . 1 . . . . . 1 . Parts Melted 17 | . . . . . 4 7 5 . . . . . 1 . Heat Transferred 6475 | . . . . . 2495 886 2043 . 200 . . . 851 . Parts Sabotaged . | . . . . . . . . . . . . . . . Parts Stolen . | . . . . . . . . . . . . . . . Parts Stripped . | . . . . . . . . . . . . . . . Power Chain Reactions 1 | . . . . . . . . . . . . . . 1 Missiles Intercepted . | . . . . . . . . . . . . . . . Alert | -11 -10 -10 -9 -9 -8 -8 -8 -8 -7 -7 -7 -6 -6 -5 ------- Run | Scr Mat Min Mat Min Mat Gar Mat Gar Fac Gar Fac Fac Gar Fac Peak Influence 766 | . 324 173 347 184 385 601 466 663 449 766 407 242 489 389 Initial 401 | . . 103 . 119 . 250 292 301 347 267 401 53 110 249 Average 256 | . 160 62 204 61 177 431 365 522 280 603 308 90 393 236 Maximum Alert Level 3 | . 1 . 1 . 1 2 2 2 2 3 2 1 2 1 Low Security (%) 41 | 100 67 100 40 100 62 . . . 21 . 4 95 10 21 Level 1 37 | . 32 . 59 . 37 51 68 12 70 16 47 4 19 78 Level 2 19 | . . . . . . 48 31 87 7 42 47 . 70 . Level 3 1 | . . . . . . . . . . 41 . . . . Level 4 . | . . . . . . . . . . . . . . . Level 5 . | . . . . . . . . . . . . . . . High Security . | . . . . . . . . . . . . . . . Max Security . | . . . . . . . . . . . . . . . Squads Dispatched 41 | . 3 . 1 . 5 . 5 . 11 . 1 8 . 7 Investigation 4 | . 1 . . . . . . . . . . 1 . 2 Extermination 8 | . . . . . . . . . 3 . 1 3 . 1 Reinforcement 24 | . 2 . 1 . 4 . 3 . 7 . . 4 . 3 Assault . | . . . . . . . . . . . . . . . Garrison 5 | . . . . . 1 . 2 . 1 . . . . 1 Intercept . | . . . . . . . . . . . . . . . Searches Triggered . | . . . . . . . . . . . . . . . Construction Impeded 3 | . . . . . . . . . . . . 2 . 1 Haulers Reinforced 2 | . . . . . . . . . 2 . . . . . Active Scanning Responses 1 | . . . . . . . . . . . . . . 1 Cargo Convoy Interrupts 1 | . . . . . . . . . . . . . . 1 Stealth | -11 -10 -10 -9 -9 -8 -8 -8 -8 -7 -7 -7 -6 -6 -5 --------- Run | Scr Mat Min Mat Min Mat Gar Mat Gar Fac Gar Fac Fac Gar Fac Distress Signals 20 | . 3 . 1 . 3 . . 1 4 . 1 2 . 5 Communications Jammed . | . . . . . . . . . . . . . . . Distress Signals . | . . . . . . . . . . . . . . . Times Spotted 364 | . 23 5 29 9 51 10 25 17 57 30 4 24 33 47 Peak Tracking Total 16 | . 6 3 4 2 5 3 4 6 10 8 2 5 5 16 Tactical Retreats 14 | . 1 . . . 1 . 1 1 2 1 1 2 2 2 Traps | -11 -10 -10 -9 -9 -8 -8 -8 -8 -7 -7 -7 -6 -6 -5 ------- Run | Scr Mat Min Mat Min Mat Gar Mat Gar Fac Gar Fac Fac Gar Fac Traps Triggered 21 | . 1 . . . . 2 . 6 . 5 1 1 5 . Indirectly . | . . . . . . . . . . . . . . . Trap Hack Attempts . | . . . . . . . . . . . . . . . Triggered . | . . . . . . . . . . . . . . . Disarmed . | . . . . . . . . . . . . . . . Reprogrammed . | . . . . . . . . . . . . . . . Reused . | . . . . . . . . . . . . . . . Traps Extracted . | . . . . . . . . . . . . . . . Installed . | . . . . . . . . . . . . . . . Triggered 3 | . . . . . . . . . . . . . . 3 Machines | -11 -10 -10 -9 -9 -8 -8 -8 -8 -7 -7 -7 -6 -6 -5 ---------- Run | Scr Mat Min Mat Min Mat Gar Mat Gar Fac Gar Fac Fac Gar Fac Machines Disabled 21 | . . . . . . 2 . 1 5 2 . 2 3 6 Max in Single Turn 4 | . . . . . . 1 . 1 3 1 . 2 1 4 Garrison Relay 7 | . . . . . . 2 . 1 . 1 . . 3 . Machines Sabotaged . | . . . . . . . . . . . . . . . Garrisons Compromised 1 | . . . . . . . . . . . . . . 1 Overloaded Fab Kills . | . . . . . . . . . . . . . . . Hacking | -11 -10 -10 -9 -9 -8 -8 -8 -8 -7 -7 -7 -6 -6 -5 --------- Run | Scr Mat Min Mat Min Mat Gar Mat Gar Fac Gar Fac Fac Gar Fac Machines Accessed 18 | . 1 . 2 . 4 . 1 . 3 . . 5 . 2 Terminals 9 | . . . 2 . 3 . . . 1 . . 2 . 1 Fabricators 3 | . . . . . . . . . 1 . . 1 . 1 Repair Stations 1 | . . . . . . . . . . . . 1 . . Recycling Units 1 | . 1 . . . . . . . . . . . . . Scanalyzers . | . . . . . . . . . . . . . . . Garrison Access 4 | . . . . . 1 . 1 . 1 . . 1 . . Total Hacks 27 | . 1 . 3 . 6 . 1 . 3 . . 8 . 5 Successful 18 | . 1 . 1 . 4 . 1 . 2 . . 7 . 2 Failed 9 | . . . 2 . 2 . . . 1 . . 1 . 3 Catastrophic 3 | . . . 1 . . . . . . . . . . 2 Database Lockouts . | . . . . . . . . . . . . . . . Manual 6 | . 1 . 3 . . . . . . . . 2 . . Terminals 16 | . . . 3 . 5 . . . 1 . . 3 . 4 Fabricators 4 | . . . . . . . . . 1 . . 2 . 1 Repair Stations 2 | . . . . . . . . . . . . 2 . . Recycling Units 1 | . 1 . . . . . . . . . . . . . Scanalyzers . | . . . . . . . . . . . . . . . Garrison Access 4 | . . . . . 1 . 1 . 1 . . 1 . . Terminal Hacks 9 | . . . 1 . 3 . . . 1 . . 3 . 1 Branch Access Points 1 | . . . 1 . . . . . . . . . . . Locate Traps 2 | . . . . . . . . . 1 . . . . 1 Recall Reinforcements 1 | . . . . . . . . . . . . 1 . . Hauler Manifests 3 | . . . . . 3 . . . . . . . . . Registered Components 2 | . . . . . . . . . . . . 2 . . Fabricator Hacks 2 | . . . . . . . . . . . . 1 . 1 Build 2 | . . . . . . . . . . . . 1 . 1 Repair Station Hacks 2 | . . . . . . . . . . . . 2 . . Scan Component 1 | . . . . . . . . . . . . 1 . . Repair 1 | . . . . . . . . . . . . 1 . . Recycling Unit Hacks . | . . . . . . . . . . . . . . . Scanalyzer . | . . . . . . . . . . . . . . . Garrison Access Hacks 4 | . . . . . 1 . 1 . 1 . . 1 . . Unlock Access 4 | . . . . . 1 . 1 . 1 . . 1 . . Unauthorized Hacks 1 | . 1 . . . . . . . . . . . . . Terminals . | . . . . . . . . . . . . . . . Fabricators . | . . . . . . . . . . . . . . . Repair Stations . | . . . . . . . . . . . . . . . Recycling Units 1 | . 1 . . . . . . . . . . . . . Tunnel 1 | . 1 . . . . . . . . . . . . . Scanalyzers . | . . . . . . . . . . . . . . . Garrison Access . | . . . . . . . . . . . . . . . Data Cores Recovered . | . . . . . . . . . . . . . . . Used . | . . . . . . . . . . . . . . . Hacking Detections 10 | . . . 1 . 2 . . . 2 . . 3 . 2 Full Trace Events 2 | . . . 1 . . . . . . . . . . 1 Feedback Events . | . . . . . . . . . . . . . . . Feedback Blocked . | . . . . . . . . . . . . . . . Robot Schematics Acquired . | . . . . . . . . . . . . . . . Robots Built 1 | . . . . . . . . . . . . . . 1 Authchips . | . . . . . . . . . . . . . . . Time 76 | . . . . . . . . . . . . . . 76 Total Robot Build Rating 5 | . . . . . . . . . . . . . . 5 Part Schematics Acquired . | . . . . . . . . . . . . . . . Parts Built 2 | . . . . . . . . . . . . 2 . . Authchips . | . . . . . . . . . . . . . . . Time 95 | . . . . . . . . . . . . 95 . . Total Part Build Rating 10 | . . . . . . . . . . . . 10 . . Parts Repaired 1 | . . . . . . . . . . . . 1 . . Time 30 | . . . . . . . . . . . . 30 . . Parts Recycled . | . . . . . . . . . . . . . . . Recycled Matter . | . . . . . . . . . . . . . . . Retrieved Matter . | . . . . . . . . . . . . . . . Retrieved Components . | . . . . . . . . . . . . . . . Parts Scanalyzed . | . . . . . . . . . . . . . . . Part Schematics Acquired . | . . . . . . . . . . . . . . . Parts Damaged . | . . . . . . . . . . . . . . . Bothacking | -11 -10 -10 -9 -9 -8 -8 -8 -8 -7 -7 -7 -6 -6 -5 ------------ Run | Scr Mat Min Mat Min Mat Gar Mat Gar Fac Gar Fac Fac Gar Fac Used RIF Installer 4 | . . . . . . 1 . 1 . 1 . . 1 . Command Fork 1 | . . . . . . . . . . 1 . . . . Threat Obfuscator 1 | . . . . . . . . 1 . . . . . . Program Shield 1 | . . . . . . . . . . . . . 1 . Robots Hacked 40 | . . . . . . . . . 10 . 2 4 6 18 Non-combat 16 | . . . . . . . . . 4 . 2 4 . 6 Combat 24 | . . . . . . . . . 6 . . . 6 12 Robot Hacks Applied 45 | . . . . . . . . . 12 . 2 4 8 19 no_distress 1 | . . . . . . . . . 1 . . . . . generate_echo 1 | . . . . . . . . . . . . . . 1 map_walls 5 | . . . . . . . . . 1 . 1 1 . 2 map_earth 1 | . . . . . . . . . . . . 1 . . drop_inventory 3 | . . . . . . . . . 1 . . 1 . 1 locate_stockpiles 1 | . . . . . . . . . . . . . . 1 ignore_parts 1 | . . . . . . . . . . . . . . 1 disarm_traps 1 | . . . . . . . . . 1 . . . . . summon_haulers 1 | . . . . . . . . . 1 . . . . . map_route 2 | . . . . . . . . . . . 1 . . 1 relay_feed 1 | . . . . . . . . . . . . 1 . . scatter_targeting 1 | . . . . . . . . . . . . . . 1 link_complan 1 | . . . . . . . . . . . . . . 1 amplify_resonance 4 | . . . . . . . . . 1 . . . . 3 overwrite_iff 9 | . . . . . . . . . 2 . . . 5 2 streamctrl_high 5 | . . . . . . . . . 3 . . . 1 1 formatsys_high 7 | . . . . . . . . . 1 . . . 2 4 Relay Couplers Released 29 | . . . . . . 7 . 4 . 3 . 3 12 . Machine Destruction 26 | . . . . . . 7 . 4 . 3 . . 12 . Programmers 3 | . . . . . . . . . . . . 3 . . Attached 19 | . . . . . . . . . 4 . 1 1 4 9 Fabnet Peak Effective % . | . . . . . . . . . . . . . . . Robots Rewired . | . . . . . . . . . . . . . . . Allies Hacked 1 | . . . . . . . . . 1 . . . . . Hacks Repelled . | . . . . . . . . . . . . . . . Allies | -11 -10 -10 -9 -9 -8 -8 -8 -8 -7 -7 -7 -6 -6 -5 -------- Run | Scr Mat Min Mat Min Mat Gar Mat Gar Fac Gar Fac Fac Gar Fac Total Allies 23 | . . . . 3 . . . . 6 . . . 6 8 Largest Group 4 | . . . . 3 2 . . . 1 . . . 2 4 Highest-Rated Group 133 | . . . . 40 24 . . . 21 . . . 64 133 Highest-Rated Ally 49 | . . . . 16 16 . . . 21 . . . 32 49 Total Orders . | . . . . . . . . . . . . . . . Ally Attacks 116 | . . . . 24 17 . . . 34 . . . 17 24 Total Damage 1586 | . . . . 226 124 . . . 478 . . . 407 351 Kills 11 | . . . . 4 1 . . . 2 . . . 3 1 Allies Corrupted 1 | . . . . . . . . . . . . . 1 . Allies Melted . | . . . . . . . . . . . . . . . Intel | -11 -10 -10 -9 -9 -8 -8 -8 -8 -7 -7 -7 -6 -6 -5 ------- Run | Scr Mat Min Mat Min Mat Gar Mat Gar Fac Gar Fac Fac Gar Fac Robot Analysis Total . | . . . . . . . . . . . . . . . Derelict Logs Recovered 2 | . . 1 . 1 . . . . . . . . . . Drone Launches . | . . . . . . . . . . . . . . . Drone Recoveries . | . . . . . . . . . . . . . . . Exploration | -11 -10 -10 -9 -9 -8 -8 -8 -8 -7 -7 -7 -6 -6 -5 ------------- Run | Scr Mat Min Mat Min Mat Gar Mat Gar Fac Gar Fac Fac Gar Fac Turns Passed 17749 | 73 1047 1025 1481 987 1988 903 1050 779 2431 835 837 1854 1474 985 Spaces Moved 7315 | 41 525 320 498 342 636 324 377 286 1054 397 453 938 639 485 Core 19 | 2 . . . . . . . . . . 1 . . 16 Treads 3785 | 39 525 320 490 342 636 324 301 237 571 . . . . . Legs 728 | . . . . . . . . . . . . 151 577 . Wheels 2783 | . . . 8 . . . 76 49 483 397 452 787 62 469 Hover . | . . . . . . . . . . . . . . . Flight . | . . . . . . . . . . . . . . . Fastest Speed 50 | 50 160 240 200 250 243 240 190 190 145 145 160 125 145 50 Average Speed 196 | 154 167 240 249 250 247 241 232 233 184 149 164 160 185 145 Slowest Speed 2100 | 160 240 240 250 250 325 243 243 243 243 160 2100 190 190 160 Overloaded Moves . | . . . . . . . . . . . . . . . Propulsion Burnouts . | . . . . . . . . . . . . . . . Robots Hopped . | . . . . . . . . . . . . . . . Cave-ins Triggered . | . . . . . . . . . . . . . . . Exploration Rate (%) 44 | 4 72 74 51 72 53 51 33 49 25 49 13 23 88 15 Regions Visited 14 Branch Regions 2 Pre-discovered Areas 3 | . 1 . . 2 . . . . . . . . . . Known Exits Taken 7 | . . 1 1 . 1 . 1 . 1 . 1 1 . . Unknown Exits Taken 3 | 1 1 . . 1 . . . . . . . . . . Scrap Searched 3 | . . . . 3 . . . . . . . . . . Spaces Dug 39 | . . . 9 . . 9 . . 1 . . 1 19 . Terrain Destroyed 304 | . 44 . 22 . 13 14 15 16 22 75 . 7 65 11 Melee 4 | . . . . . . . . . 1 . . 1 2 . Projectile 20 | . . . . . 1 1 . . . 4 . 1 2 11 AOE 279 | . 44 . 22 . 12 13 15 16 21 70 . 5 61 . Terrain Rammed . | . . . . . . . . . . . . . . . Walls Destroyed . | . . . . . . . . . . . . . . . Machines Disabled . | . . . . . . . . . . . . . . . Actions | -11 -10 -10 -9 -9 -8 -8 -8 -8 -7 -7 -7 -6 -6 -5 --------- Run | Scr Mat Min Mat Min Mat Gar Mat Gar Fac Gar Fac Fac Gar Fac Total 9402 | 48 616 559 627 444 843 395 477 353 1398 519 500 1126 836 661 Wait 566 | . 5 225 20 80 34 11 19 9 97 . 9 25 1 31 Move 7297 | 40 524 319 497 341 635 322 376 284 1053 395 452 937 637 485 Hop . | . . . . . . . . . . . . . . . Pick Up 152 | 2 14 . 20 1 18 10 8 2 21 4 4 14 24 10 Fast Attach 51 | 6 2 . 2 . 3 . 2 2 8 5 2 9 2 8 Attach 87 | . 4 3 3 2 9 3 2 2 14 5 1 11 13 15 Detach 22 | . 5 . 3 . . 1 1 . 3 1 . 3 1 4 Swap 114 | . 3 . 6 . 15 8 8 3 24 5 7 8 18 9 Drop 103 | . 5 . 5 . 14 9 11 3 18 1 4 9 13 11 Fire 872 | . 54 12 69 20 115 27 50 40 138 79 12 77 93 86 Melee 64 | . . . . . . . . . 21 . 5 29 9 . Ram 9 | . . . . . . . . . . . 4 4 . 1 Kick . | . . . . . . . . . . . . . . . Crush 3 | . . . 2 . . . . . 1 . . . . . Escape Stasis 61 | . . . . . . 4 . 8 . 24 . . 25 . Rewire 1 | . . . . . . . . . . . . . . 1 Trap . | . . . . . . . . . . . . . . . Miscellaneous . | . . . . . . . . . . . . . . . Route ------- -11/Scrapyard -10/Materials (discovered 2 exits: *Mat / [*Min]) -10/Mines (discovered 2 exits: *Mat x2) -9/Materials (discovered 2 exits: *Mat / *Min) -9/Mines (discovered 2 exits: *Mat / [*Exi]) -8/Materials (discovered 3 exits: *Fac x2 / Gar) -8/Garrison -8/Materials -8/Garrison (discovered 2 exits: *Fac x2) -7/Factory (discovered 6 exits: *Fac x3 / [*Sto] / [*Low] / Gar) -7/Garrison (discovered 2 exits: [*Fac x2]) -7/Factory -6/Factory (discovered 3 exits: *Fac / [*Low] / Gar) -6/Garrison (discovered 3 exits: *Fac x3) -5/Factory (discovered 1 exit: *Upp) History --------- Turn | Location | Event 21 | -11/Scrapyard | Discovered new exit (range 15) 74 | -11/Scrapyard | Entered Materials 313 | -10/Materials | Build established: Mutant 410 | -10/Materials | Discovered new exit (range 15) 838 | -10/Materials | Discovered new exit (range 5) 1121 | -10/Materials | Entered Mines 1321 | -10/Mines | YI-UF0 nonchalantly dropped a Grenade Launcher on the ground 1387 | -10/Mines | Identified exit to Materials 1437 | -10/Mines | Discovered exit to Materials (range 5) 1582 | -10/Mines | Excavation squad dispatched 1582 | -10/Mines | A large section of the Mines collapsed 1857 | -10/Mines | Destroyed YI-UF0 1858 | -10/Mines | Core integrity fell below 50% 1888 | -10/Mines | Lost 3 parts (1p2n) 2146 | -10/Mines | Entered Materials 2146 | -9/Materials | Evolved 2 slots: Propulsion x1, Utility x1 2972 | -9/Materials | Discovered new exit (range 3) 3187 | -9/Materials | Identified exit to Mines 3627 | -9/Materials | Entered Mines 3628 | -9/Mines | Assembled infested the area 3633 | -9/Mines | Assisted by a Guerilla fighting off Assembled 4254 | -9/Mines | Assisted by bots powering up and referring to "LRC-V3" 4434 | -9/Mines | Learned location of Zion (-6) 4454 | -9/Mines | Deemed a non-threat by the Exiles lab entrance 4454 | -9/Mines | Discovered new exit (range 5) 4488 | -9/Mines | Learned location of Storage (-7) 4584 | -9/Mines | Discovered new exit (range 11) 4614 | -9/Mines | Entered Materials 4614 | -8/Materials | Accompanied by 2 allies 4614 | -8/Materials | Evolved 2 slots: Utility x2 5668 | -8/Materials | Build established: Scavenger-Mutant 5682 | -8/Materials | Discovered new exit (range 16) 5829 | -8/Materials | Identified exit to Garrison 5879 | -8/Materials | Garrison activated, responded to threat 6163 | -8/Materials | Discovered new exit (range 16) 6602 | -8/Materials | Entered Garrison 6615 | -8/Garrison | Installed Relay Interface Framework 6666 | -8/Garrison | Triggered checkpoint 6696 | -8/Garrison | Garrison Relay disabled 6874 | -8/Garrison | Triggered checkpoint 7067 | -8/Garrison | Core integrity fell below 50% 7092 | -8/Garrison | Triggered checkpoint 7174 | -8/Garrison | Garrison Relay disabled 7256 | -8/Garrison | Discovered new exit (range 15) 7483 | -8/Garrison | Build established: Bothacker-Mutant 7505 | -8/Garrison | Entered Materials 8432 | -8/Materials | Garrison activated, responded to threat 8552 | -8/Materials | Identified exit to Garrison 8555 | -8/Materials | Entered Garrison 8640 | -8/Garrison | Triggered checkpoint 8654 | -8/Garrison | Garrison Relay disabled 8868 | -8/Garrison | Triggered checkpoint 8964 | -8/Garrison | Discovered new exit (range 8) 9157 | -8/Garrison | Triggered checkpoint 9252 | -8/Garrison | Discovered new exit (range 13) 9322 | -8/Garrison | Expanded RIF knowledge: Threat Obfuscation 9334 | -8/Garrison | Entered Factory 9334 | -7/Factory | Evolved 2 slots: Propulsion x1, Utility x1 9872 | -7/Factory | Lost 3 parts (1p1u1w) 9961 | -7/Factory | Discovered new exit (range 6) 10111 | -7/Factory | Discovered new exit (range 8) 10648 | -7/Factory | Garrison activated, responded to threat 10705 | -7/Factory | Destroyed 7 combat bots 10946 | -7/Factory | Discovered new exit (range 15) 11022 | -7/Factory | Found Prototype Device 11035 | -7/Factory | Lost 5 parts (1p2n2u) 11379 | -7/Factory | Build established: Scavenger-Mutant 11459 | -7/Factory | Discovered new exit (range 13) 11715 | -7/Factory | Discovered new exit (range 9) 11763 | -7/Factory | Identified exit to Garrison 11765 | -7/Factory | Entered Garrison 11830 | -7/Garrison | Triggered checkpoint 11950 | -7/Garrison | Triggered checkpoint 11998 | -7/Garrison | Triggered checkpoint 12000 | -7/Garrison | Triggered checkpoint 12073 | -7/Garrison | Destroyed 9 combat bots 12148 | -7/Garrison | Garrison Relay disabled 12232 | -7/Garrison | Triggered checkpoint 12246 | -7/Garrison | Core integrity fell below 50% 12275 | -7/Garrison | System corruption reached 10% 12307 | -7/Garrison | Lost 5 parts (2n2u1w) 12329 | -7/Garrison | Discovered new exit (range 14) 12461 | -7/Garrison | Build established: Bothacker-Mutant 12510 | -7/Garrison | Discovered new exit (range 12) 12585 | -7/Garrison | Expanded RIF knowledge: Command Fork 12600 | -7/Garrison | Entered Factory 13052 | -7/Factory | Discovered new exit (range 89) 13392 | -7/Factory | Identified exit to Factory 13437 | -7/Factory | Entered another Factory area 13437 | -6/Factory | Evolved 2 slots: Utility x2 13595 | -6/Factory | Fabricated Phase Cannon? 14550 | -6/Factory | Repaired Broken Arm. Huge Wheel 14978 | -6/Factory | Lost 4 parts (1p1n1u1w) 15086 | -6/Factory | Discovered new exit (range 13) 15109 | -6/Factory | Identified exit to Factory 15113 | -6/Factory | Discovered new exit (range 13) 15289 | -6/Factory | Identified exit to Garrison 15291 | -6/Factory | Entered Garrison 15338 | -6/Garrison | Triggered checkpoint 15396 | -6/Garrison | Garrison Relay disabled 15638 | -6/Garrison | Triggered checkpoint 15728 | -6/Garrison | Triggered checkpoint 15815 | -6/Garrison | Discovered exit to Factory (range 14) 15896 | -6/Garrison | Triggered checkpoint 15957 | -6/Garrison | Garrison Relay disabled 16094 | -6/Garrison | Triggered checkpoint 16283 | -6/Garrison | Lost 3 parts (1p2n) 16397 | -6/Garrison | Discovered exit to Factory (range 8) 16532 | -6/Garrison | Discovered exit to Factory (range 10) 16559 | -6/Garrison | Expanded RIF knowledge: Program Shield 16594 | -6/Garrison | Triggered checkpoint 16606 | -6/Garrison | System corruption reached 10% 16691 | -6/Garrison | Lost 8 parts (3n4u1w) 16699 | -6/Garrison | Garrison Relay disabled 16765 | -6/Garrison | Entered Factory 16765 | -5/Factory | Evolved 2 slots: Propulsion x1, Weapon x1 17013 | -5/Factory | Build established: Botlord-Mutant 17364 | -5/Factory | Fabricated M-22 Extractor? 17469 | -5/Factory | Cargo convoy interrupted 17508 | -5/Factory | Discovered new exit (range 7) 17579 | -5/Factory | Identified Active Sensor Suite 17583 | -5/Factory | Identified exit to Upper Caves 17660 | -5/Factory | Garrison activated, responded to threat 17717 | -5/Factory | Core integrity fell below 50% 17741 | -5/Factory | Core integrity fell below 20% 17750 | -5/Factory | Destroyed by H-66 Slayer with Gauss Rifle Last Messages --------------- 17736_ Slug penetrates K-01 Serf. 17736_ K-01 Serf destroyed. 17737_ K-01 Serf collects debris. 17738_ Critical hit (Burn: +37). 17738_ Penetrated by Slug. 17739_ U-05 Engineer builds a Wall. 17740_ K-01 Serf collects debris. 17740_ Dropped Huge Storage Unit. 17741_ Dropped Point Defense System. 17741_ Penetrated by Slug. 17742_ Acquired Imp. Datajack. 17744_ K-01 Serf collects debris. 17744_ Acquired data core, dynamic key expired. 17744_ Penetrated by Slug. 17748_ K-01 Serf collects debris. 17749_ U-05 Engineer lays Concrete. 17750_ Slug penetrates Wall. 17750_ Penetrated by Slug. 17750_ Adv. Hacking Suite destroyed. 17750_ Penetrated by Slug. Map ----- +----------------------------------------------------+ | ?????????????????????????????????????????????????? | | ?????????????????????????????????????????????????? | | ?????????????????????????????????????????????????? | | ?????????????????????????????????????????????????? | | ?????????????????????????????????????????????????? | | ?????????????????????????????????????????????????? | | ?????????????????????????????????????????????????? | | ?????????????????????????????????????????????????? | | ?????????????????????????????????????????????????? | | ?????????????????????????????????????????????????? | | ?????????????????? ????????????????????????????? | | ????????????? ?? #???????????????????????????? | | ????????????# """ #???????????????????????????? | | ????????????# """ #??? ???????????????????????? | | ????????????# #?? ???????????????????????? | | ????????????# #? ????????????????????????? | | ????????????# * #? ?????????????????????????? | | ????????????? # ?????????????????????????? | | ????????????? # ??????????????????????????? | | ?????????????? +???????????????????????????? | | ?????????? ????# #???????????????????????????? | | ???????????!???# #???????????????????????????? | | ??????????? #??# ######??????????????????????? | | ################ #######+#######????????? | | ## ???????? | | !*= !* @ h ???????? | | ==%===[ R h ???????? | | ??""" %!u%%u """ ################???????? | | ??""" ! % ==u= """ #?# = #???????? | | ? """ % % * """ #?# #???????? | | ! [= ! m ### #???????? | | ? %% =%""" # ??????? / | | ?#+######%""=== !!"""" # """ "???????????? | | ? #" !!!! "" ! + """ "???????????? | | ????????# !!! # """ "???????????? | | ????????# %[%= % # ??????????? | | ????????# #"#####;##### # """ """?????????? | | ????????# #[ ??? #??# # """ ""??????????? | | ????????# # ??""" #??# # """ ""??????????? | | ????????# # ? """ #??# # ????????????? | | ????????# ?# ? """ #??# #########????????????? | | ??????? + ?+ #??# #????????????????????? | | ?????? # ??# ?? #??# #?????????????######## | | ????? ?# ??? ??? #### ############### | | ????? ??# ???? ????? + > #### | | ????????# ???? ????? #################### #??? | | ????????? ?????##??????#??????????????????## ##??? | | ???????????????????????????????????????????#[#???? | | ???????????????????????????????????????????#[##### | | ???????????????????????????????????????????# ## | +----------------------------------------------------+ Best States ------------- Heat Dissipation 71 Energy Generation 18 Energy Capacity 310 Matter Stores 300 Matter Capacity 300 Sight Range 16 Robot Scan Range 20 Terrain Scan Density 10 Corruption Containment 8 Armor Coverage 750 Point Defense Rating 80 Weapon Cycling 15 Evasion (%) 50 Targeting Accuracy 8 Target Analysis 6 Recoil Reduction 4 Particle Charging 15 Offensive Hacking 14 Relay Coupler Types 5 Relay Coupler Value 89 Item Schematics ----------------- None Robot Schematics ------------------ None Fabricated ------------ Phase Cannon | x2 | -6/Factory | Preloaded M-22 Extractor | x1 | -5/Factory | Preloaded Alien Tech Used ----------------- None Achievements -------------- None Challenges ------------ None Game ------ Seed OmegaDecoyLog Manual? 0 Play Time 02:06:47 Cumulative 303.2 hours Start 2022.03.27 @ 21:43:37 End 2022.03.28 @ 20:54:35 Sessions 3 Manual Loads 0 Difficulty Rogue Special Mode None Game No. 450 Rogue 450 Adventurer 0 Explorer 0 Win Type - Total 5 Types 3/0/1/1/0/0/0/0/0 Lore% 79 Gallery% 80 Achievement% 64 Wizard Run 0 Options --------- ASCII 0 Keyboard 1 Movement Numpad Keybinds 0 Fullscreen 2 Font 24/Smallcaps Map View 76x50 Tactical HUD 1 Map Filters NONE Filters NONE Steam 1 RUN: 5599d4b9-b3d3-42d2-88c3-1d08b51629de